[Event "SS Manhem GM"]
[Site "Molnlycke SWE"]
[Date "2018.08.16"]
[Round "8.1"]
[White "Golubka, Petro"]
[Black "Christiansen, Johan Sebastian"]
[Result "0-1"]
[ECO "E53"]
[WhiteElo "2478"]
[BlackElo "2515"]
[WhiteFideId "-1"]
[BlackFideId "-1"]
[PlyCount "122"]
[GameId "2129404765005139"]
[EventDate "2018.08.11"]
[EventType "tourn"]
[EventRounds "9"]
[EventCountry "SWE"]
[EventCategory "8"]
[SourceTitle "10 Days #552"]
[Source "ChessMix"]
[SourceDate "2018.08.20"]
[SourceVersion "1"]
[SourceVersionDate "2018.08.20"]
[SourceQuality "1"]
[TimeControl "90+30"]
[WhiteClock "0:13:22"]
[BlackClock "0:40:52"]

1. d4 {[%emt 0:00:00]} Nf6 {[%emt 0:00:00]} 2. c4 {[%emt 0:00:00]} e6 {[%emt 0:00:00]} 3. Nf3 {[%emt 0:00:00]} d5 {[%emt 0:00:00]} 4. Nc3 {[%emt 0:00:00]} Bb4 {[%emt 0:00:00]} 5. e3 {[%emt 0:00:00]} O-O {[%emt 0:00:00]} 6. Bd3 {[%emt 0:00:00]} dxc4 {[%emt 0:00:00]} 7. Bxc4 {[%emt 0:00:00]} c5 {[%emt 0:00:00]} 8. a3 {[%emt 0:00:00]} Bxc3+ {[%emt 0:00:00]} 9. bxc3 {[%emt 0:00:00]} Qc7 {[%emt 0:00:00]} 10. Be2 {[%emt 0:00:00]} b6 {[%emt 0:00:00]} 11. O-O {[%emt 0:00:00]} Bb7 {[%emt 0:00:00]} 12. h3 {[%emt 0:00:00]} Rd8 {[%emt 0:00:00]} 13. Bb2 {[%emt 0:00:00]} Nc6 {[%emt 0:00:00]} 14. Rc1 {[%emt 0:00:00]} Rac8 {[%emt 0:00:00]} 15. Re1 {[%emt 0:00:00]} Na5 {[%emt 0:00:00]} 16. Bf1 {[%emt 0:00:00]} c4 {[%emt 0:00:00]} 17. Nd2 {[%emt 0:00:00]} Ne4 {[%emt 0:00:00]} 18. Nxe4 {[%emt 0:00:00]} Bxe4 {[%emt 0:00:00]} 19. f3 {[%emt 0:00:00]} Bd3 {[%emt 0:00:00]} 20. Bxd3 {[%emt 0:00:00]} cxd3 {[%emt 0:00:00]} 21. Qxd3 {[%emt 0:00:00]} Nc4 {[%emt 0:00:00]} 22. Qe2 {[%emt 0:00:00]} Qc6 {[%emt 0:00:00]} 23. Qc2 {[%emt 0:00:00]} Rd5 {[%emt 0:00:00]} 24. Rb1 {[%emt 0:00:00]} Ra5 {[%emt 0:00:00]} 25. Ra1 {[%emt 0:00:00]} Nxb2 {[%emt 0:00:00]} 26. Qxb2 {[%emt 0:00:00]} Rb5 {[%emt 0:00:00]} 27. Qd2 {[%emt 0:00:00]} Rb3 {[%emt 0:00:00]} 28. Rec1 {[%emt 0:00:00]} Rxc3 {[%emt 0:00:00]} 29. Rxc3 {[%emt 0:00:00]} Qxc3 {[%emt 0:00:00]} 30. Qxc3 {[%emt 0:00:00]} Rxc3 {[%emt 0:00:00]} 31. Kf2 {[%emt 0:00:00]} Rc2+ {[%emt 0:04:00]} 32. Kg3 {[%emt 0:00:00]} Kf8 {[%emt 0:00:38]} 33. a4 {[%emt 0:00:00]} Ke7 {[%emt 0:01:08]} 34. Rb1 {[%emt 0:00:00]} Kd6 {[%emt 0:01:30]} 35. a5 {[%emt 0:00:00]} Kc6 {[%emt 0:01:14]} 36. axb6 {[%emt 0:00:00]} axb6 {[%emt 0:00:05]} 37. h4 {[%emt 0:00:00]} b5 {[%emt 0:00:40]} 38. h5 {[%emt 0:00:00]} h6 {[%emt 0:00:40]} 39. Kf4 {[%emt 0:00:00]} Rxg2 {[%emt 0:02:50]} 40. Rc1+ {[%emt 0:00:51]} Kd6 {[%emt 0:06:36]} 41. e4 {[%emt 0:01:09]} f6 {[%emt 0:00:00]} 42. e5+ {[%emt 0:00:00]} Kd5 {[%emt 0:00:00]} 43. Ke3 {[%emt 0:00:00]} fxe5 {[%emt 0:00:00]} 44. Rc5+ {[%emt 0:00:00]} Kd6 {[%emt 0:00:00]} 45. Rxb5 {[%emt 0:00:00]} exd4+ {[%emt 0:00:00]} 46. Kxd4 {[%emt 0:00:00]} Ke7 {[%emt 0:00:00]} 47. f4 {[%emt 0:00:00]} Kf6 {[%emt 0:00:00]} 48. Ke4 {[%emt 0:00:00]} Rd2 {[%emt 0:00:00]} 49. Rb1 {[%emt 0:00:00]} Rd5 {[%emt 0:00:00]} 50. Rh1 {[%emt 0:00:00]} Ra5 {[%emt 0:00:00]} 51. Kf3 {[%emt 0:00:00]} Kf5 {[%emt 0:00:00]} 52. Rg1 {[%emt 0:00:00]} Ra3+ {[%emt 0:00:00]} 53. Ke2 {[%emt 0:00:00]} Kf6 {[%emt 0:00:00]} 54. Rh1 {[%emt 0:00:00]} Rg3 {[%emt 0:00:00]} 55. Kf2 {[%emt 0:00:00]} Rg4 {[%emt 0:00:00]} 56. Ke3 {[%emt 0:00:00]} Kf5 {[%emt 0:00:00]} 57. Rf1 {[%emt 0:00:00]} Rh4 {[%emt 0:00:00]} 58. Rg1 {[%emt 0:00:00]} Kf6 {[%emt 0:00:00]} 59. Rg6+ {[%emt 0:00:00]} Kf7 {[%emt 0:00:00]} 60. Rg1 {[%emt 0:00:00]} Rxh5 {[%emt 0:00:00]} 61. Ke4 {[%emt 0:00:00]} Ra5 {[%emt 0:00:00]} 0-1

[Event "SS Manhem GM"]
[Site "Molnlycke SWE"]
[Date "2018.08.17"]
[Round "9.3"]
[White "Vestby Ellingsen, Mads"]
[Black "Golubka, Petro"]
[Result "1/2-1/2"]
[ECO "A59"]
[WhiteElo "2409"]
[BlackElo "2478"]
[WhiteFideId "-1"]
[BlackFideId "-1"]
[PlyCount "28"]
[GameId "2129404765005146"]
[EventDate "2018.08.11"]
[EventType "tourn"]
[EventRounds "9"]
[EventCountry "SWE"]
[EventCategory "8"]
[SourceTitle "10 Days #552"]
[Source "ChessMix"]
[SourceDate "2018.08.20"]
[SourceVersion "1"]
[SourceVersionDate "2018.08.20"]
[SourceQuality "1"]
[TimeControl "90+30"]
[WhiteClock "1:30:25"]
[BlackClock "1:09:30"]

1. d4 {[%emt 0:00:00]} Nf6 {[%emt 0:00:00]} 2. c4 {[%emt 0:00:00]} c5 {[%emt 0:00:00]} 3. d5 {[%emt 0:00:00]} b5 {[%emt 0:00:00]} 4. cxb5 {[%emt 0:00:00]} a6 {[%emt 0:00:00]} 5. bxa6 {[%emt 0:00:00]} g6 {[%emt 0:00:00]} 6. Nc3 {[%emt 0:00:00]} Bxa6 {[%emt 0:00:00]} 7. e4 {[%emt 0:00:00]} Bxf1 {[%emt 0:00:00]} 8. Kxf1 {[%emt 0:00:00]} d6 {[%emt 0:00:00]} 9. g3 {[%emt 0:00:00]} Bg7 {[%emt 0:00:00]} 10. Kg2 {[%emt 0:00:00]} O-O {[%emt 0:00:00]} 11. Nf3 {[%emt 0:00:00]} Nbd7 {[%emt 0:00:00]} 12. a4 {[%emt 0:00:00]} Qb6 {[%emt 0:00:00]} 13. Qe2 {[%emt 0:00:00]} Rfb8 {[%emt 0:00:00]} 14. Nb5 {[%emt 0:00:00]} Ne8 {[%emt 0:00:00]} 1/2-1/2